Cogmind - Beta 16 @@@ ROGUE MODE // 2025.11.05 @ 01:06:19 Player: shapeshifter Result: Destroyed by 8R-AWN with 8R-AWN's Boregun Performance ------------- Evolutions (1) 500 Regions Visited (5) 1000 Robots Destroyed (46) 230 Value Destroyed (1201) 1201 Prototype IDs (23) 460 Alien Tech Used (0) 0 Bonus (429) 429 TOTAL SCORE: 3820 Bonus ------- Follower Combat Kills 129 Aligned with FarCom 300 Cogmind --------- Core Integrity 0/400 Matter 170/300 Energy 100/100 System Corruption 0% Temperature Cool (0) Movement Core (50) Location -9/Exiles Parts ------- > --- POWER (1) -------- (None) > --- PROPULSION (2) --- (None) > --- UTILITY (4) ------ (None) > --- WEAPON (2) ------- Longsword +1 > --- INVENTORY (5) ---- Light Deuterium Engine Combat Airjet Combat Airjet High-capacity Storage Unit Light Assault Rifle Peak State ------------ > --- POWER ------------ Improved Ion Engine > --- PROPULSION ------- Light Treads Light Treads > --- UTILITY ---------- Large Storage Unit ECM Suite Light Armor Plating Improved Light Armor Plating > --- WEAPON ----------- Heavy Assault Rifle Heavy Assault Rifle > --- INVENTORY -------- Improved Ion Engine Light Deuterium Engine Light Treads Light Treads Combat Airjet Combat Airjet High-capacity Storage Unit Huge Storage Unit Tractor Beam Light Assault Rifle Light Assault Rifle Light Assault Rifle Heavy Assault Rifle Grenade Launcher [Rating: 16] Favorites ----------- Power Improved Ion Engine Engine Improved Ion Engine Propulsion Light Treads Treads Light Treads Wheel Compact Wheel Utility Large Storage Unit Device Seismic Detector Storage Large Storage Unit Protection Improved Light Armor Plating Weapon Heavy Assault Rifle Ballistic Gun Heavy Assault Rifle Launcher Grenade Launcher Slashing Weapon Longsword +1 Build | -11 -10 -10 -9 -9 -9 ------- Run | Yrd Mat Min Mat Min Exi Slots Evolved 2 | . . . 2 . . Power . | . . . . . . Propulsion . | . . . . . . Utility 2 | . . . 2 . . Weapon . | . . . . . . Parts Attached 31 | 8 5 . 11 3 4 Power 4 | 1 . . 2 . 1 Engine 4 | 1 . . 2 . 1 Core . | . . . . . . Reactor . | . . . . . . Propulsion 9 | 2 2 . 4 . 1 Treads 7 | 2 . . 4 . 1 Leg . | . . . . . . Wheel 2 | . 2 . . . . Hover . | . . . . . . Flight . | . . . . . . Utility 8 | 3 1 . 3 1 . Device 4 | 2 . . 1 1 . Storage 2 | 1 1 . . . . Processor . | . . . . . . Hackware . | . . . . . . Protection 2 | . . . 2 . . Artifact . | . . . . . . Weapon 10 | 2 2 . 2 2 2 Energy Gun . | . . . . . . Energy Cannon . | . . . . . . Ballistic Gun 8 | 2 1 . 2 2 1 Ballistic Cannon . | . . . . . . Launcher 1 | . 1 . . . . Special Weapon . | . . . . . . Impact Weapon . | . . . . . . Slashing Weapon 1 | . . . . . 1 Piercing Weapon . | . . . . . . Special Melee Weapon . | . . . . . . Unidentified Prototypes . | . . . . . . Parts Lost 15 | . 5 . 1 3 6 Power 3 | . 1 . 1 . 1 Propulsion 4 | . 2 . . . 2 Utility 3 | . 1 . . 2 . Weapon 5 | . 1 . . 1 3 Highest Loss Streak 4 | . 4 . 1 2 4 To Critical Strikes 4 | . . . . . 4 Average Backups 11 | 3 7 10 14 13 12 Power 1 | . 1 1 1 2 1 Propulsion 2 | 1 1 . 3 3 2 Utility 3 | . 2 3 4 3 3 Weapon 4 | . 3 5 4 4 4 Tool/Special . | . . . . . . Unused Backups 15 | . 1 . 1 . 13 Power 4 | . . . . . 4 Propulsion 3 | . . . . . 3 Utility 5 | . 1 . . . 4 Weapon 3 | . . . 1 . 2 Tool/Special . | . . . . . . Average Slot Usage (%) 73 | . 87 71 80 69 65 Engine 9 | . 8 . 8 11 10 Treads 18 | . 16 . 17 22 21 Wheel 4 | . 10 28 4 . . Device 1 | . 8 . . 1 . Storage 11 | . 14 14 11 11 10 Protection 3 | . . . 16 2 . Ballistic Gun 22 | . 27 28 21 21 18 Peak Build Rating 16 | 7 8 7 16 15 16 Average Rating 10 | 4 6 5 13 11 12 On Entrance 7 | . 7 5 7 15 11 Avg Prop Armor Cover (%) . | . . . . . . Naked Turns . | . . . . . . Heaviest Build 39 | 11 26 22 39 39 33 Greatest Support 40 | 40 40 26 40 40 40 Greatest Overweight (x) 1 | . . . 1 . . Average Overweight (x) . | . . . . . . Largest Inventory Capacity 15 | 8 15 15 15 15 15 Average Capacity 14 | 7 11 15 15 15 14 Most Carried 15 | 7 9 14 15 15 15 Average Carried 11 | 3 7 10 14 13 12 Final Capacity 15 | 8 15 15 15 15 5 Final Carried 14 | 6 9 14 14 14 5 Class Distribution -------------------- 67% | Scavenger-Mutant 32% | Mutant Dominant Class ---------------- Mutant | -10/Materials Mutant | -10/Mines Scavenger-Mutant | -9/Materials Scavenger-Mutant | -9/Mines Scavenger-Mutant | -9/Exiles Resources | -11 -10 -10 -9 -9 -9 ----------- Run | Yrd Mat Min Mat Min Exi Matter Collected 1089 | 294 131 22 201 441 . Remotely 76 | 76 . . . . . Salvage Created 1581 | 91 281 48 535 616 10 Parts 107 | 10 20 4 40 33 . Haulers Intercepted 1 | . . . 1 . . Recyclers Shooed 4 | . 1 1 2 . . Parts Field Recycled . | . . . . . . Retrieved Matter . | . . . . . . Parts Self-Destructed . | . . . . . . Prevented . | . . . . . . Parts Restored . | . . . . . . Kills | -11 -10 -10 -9 -9 -9 ------- Run | Yrd Mat Min Mat Min Exi Combat Hostiles Destroyed 44 | . 9 1 14 17 3 Guns 43 | . 9 1 14 17 2 AOE 1 | . . . . . 1 Classes Destroyed 11 | 2 3 1 2 2 1 Tunneler 2 | 2 . . . . . Hauler 1 | . . . 1 . . Recycler 1 | 1 . . . . . Watcher 1 | . 1 . . . . Swarmer 16 | . 5 . 6 5 . Grunt 16 | . 4 . 3 9 . Brawler 2 | . . . . 2 . Duelist 1 | . . . . 1 . Sentry 5 | . . . 5 . . Demolisher 1 | . . 1 . . . Assembled 3 | . . . . . 3 Best Kill Streak 7 | 3 4 1 6 7 2 Combat Bots Only 7 | . 4 1 6 7 2 Max Kills in Single Turn 2 | 1 2 1 1 1 1 Gunslinging 1 | . 1 . . . . Exploded 1 | . . . . . 1 Melee . | . . . . . . Uniques/NPCs Destroyed . | . . . . . . Combat | -11 -10 -10 -9 -9 -9 -------- Run | Yrd Mat Min Mat Min Exi Hostile Shots Fired 277 | . 81 . 71 63 62 Missed 85 | . 22 . 24 24 15 Hits 192 | . 59 . 47 39 47 Melee 1 | . . . . 1 . Projectile 191 | . 59 . 47 38 47 AOE 1 | . . 1 . . . Critical Strikes 20 | . 1 . 2 3 14 Damage Taken 2368 | . 602 3 571 488 704 Core 475 | . 66 2 107 73 227 Absorbed by Shields . | . . . . . . Core Remaining (%) 86 | 100 . 72 . . . Volleys Fired 161 | 7 41 6 42 52 13 Largest 2 | 2 2 2 2 2 2 Hottest 46 | 40 40 40 46 46 46 Shots Fired 312 | 14 80 12 83 103 20 Gun 304 | 14 78 12 83 103 14 Cannon . | . . . . . . Launcher 8 | . 2 . . . 6 Special . | . . . . . . Kinetic 304 | 14 78 12 83 103 14 Thermal . | . . . . . . Explosive 8 | . 2 . . . 6 Electromagnetic . | . . . . . . Robot Hit Streak 11 | 2 7 5 9 11 2 Robot Miss Streak 8 | 4 6 1 4 8 4 Penetration Max . | . . . . . . Secondary Targets 10 | . 6 1 . 2 1 Max Gunslinging Chain 1 | . 1 1 . 1 1 Shots Hit Robots 192 | 6 45 9 52 59 21 Core Hits 97 | 7 25 3 27 25 10 Critical Kills . | . . . . . . Critical Parts Destroyed 1 | . . . . 1 . Critical Strikes 1 | . . . . 1 . Destroy 1 | . . . . 1 . Melee Attacks 16 | . . . . . 16 Impact . | . . . . . . Slashing 16 | . . . . . 16 Piercing . | . . . . . . Sneak Attacks . | . . . . . . Combat Hostiles . | . . . . . . Follow-up Attacks . | . . . . . . Damage Inflicted 3099 | 81 394 76 714 944 890 Guns 2288 | 81 394 76 714 944 79 Cannons . | . . . . . . Explosions 109 | . . . . . 109 Melee 702 | . . . . . 702 Ramming . | . . . . . . Kinetic 2288 | 81 394 76 714 944 79 Thermal . | . . . . . . Explosive 109 | . . . . . 109 Electromagnetic . | . . . . . . Impact . | . . . . . . Slashing 702 | . . . . . 702 Piercing . | . . . . . . Highest Corruption 2 | . 2 2 . . . Average Corruption 2 | . 2 2 . . . Corruption Purged . | . . . . . . Corruption Blocked . | . . . . . . Effects 3 | . 1 2 . . . Message Errors 1 | . 1 . . . . Matter Fused 1 | . . 1 . . . Energy Discharges 1 | . . 1 . . . Overload Shots . | . . . . . . Overflow Damage . | . . . . . . Projectiles . | . . . . . . Explosions . | . . . . . . Melee . | . . . . . . Knockbacks . | . . . . . . Impact . | . . . . . . Kinetic . | . . . . . . Secondary . | . . . . . . Self-Inflicted Damage 28 | . 28 . . . . Shots 1 | . 1 . . . . Rammed . | . . . . . . Targets Rammed . | . . . . . . Kicked . | . . . . . . Crushed . | . . . . . . Highest Temperature 29 | . 21 . 8 29 . Average Temperature 8 | . 9 . 4 10 . Received Heat Transfer 567 | . 150 . 162 255 . Siege Activations . | . . . . . . Martial Activations . | . . . . . . Shielding Activations . | . . . . . . Robots Disrupted . | . . . . . . Combat Hostiles . | . . . . . . Robots Corrupted . | . . . . . . Combat Hostiles . | . . . . . . Parts Fried . | . . . . . . Impact Corruptions . | . . . . . . Robots Melted . | . . . . . . Combat Hostiles . | . . . . . . Parts Melted . | . . . . . . Heat Transferred . | . . . . . . Parts Sabotaged . | . . . . . . Parts Stolen . | . . . . . . Parts Stripped . | . . . . . . Power Chain Reactions . | . . . . . . Alert | -11 -10 -10 -9 -9 -9 ------- Run | Yrd Mat Min Mat Min Exi Maximum Alert Level 1 | . . . 1 1 . Low Security (%) 80 | 100 100 100 85 60 . Level 1 19 | . . . 14 39 . Level 2 . | . . . . . . Level 3 . | . . . . . . Level 4 . | . . . . . . Level 5 . | . . . . . . High Security . | . . . . . . Max Security . | . . . . . . Peak Influence 291 | 10 81 53 291 286 . Initial 109 | . . 12 20 109 . Average 103 | 1 24 7 114 182 . Influence Increases 1325 | 15 246 74 515 475 . Destroy 0b10 Robot/C 920 | . 180 60 340 340 . Destroy 0b10 Robot/NC 30 | 15 5 . 10 . . Destroy Leader 214 | . 42 10 102 60 . Allied During Kill 12 | . . 4 8 . . Successful Hack 20 | . 10 . 10 . . Select Force Hacks 30 | . . . 30 . . Disable Machine 15 | . . . 15 . . Destroy Structure 9 | . 9 . . . . Lose Combat Pursuer 75 | . . . . 75 . Influence Decreases 1325 | 15 213 53 286 632 126 Entered New Map 355 | . . 21 34 174 126 Time Decay 880 | 15 183 32 222 428 . Lost Part 70 | . 30 . 10 30 . Lost Ally 20 | . . . 20 . . Squads Dispatched 5 | . 1 . 4 . . Investigation 3 | . 1 . 2 . . Extermination . | . . . . . . Reinforcement 2 | . . . 2 . . Assault . | . . . . . . Garrison . | . . . . . . Intercept . | . . . . . . Searches Triggered . | . . . . . . Construction Impeded . | . . . . . . Haulers Reinforced . | . . . . . . Active Scanning Responses . | . . . . . . Cargo Convoy Interrupts . | . . . . . . Stealth | -11 -10 -10 -9 -9 -9 --------- Run | Yrd Mat Min Mat Min Exi Distress Signals 4 | . 2 . 2 . . Communications Jammed . | . . . . . . Distress Signals . | . . . . . . Times Spotted 73 | . 16 3 24 25 5 Peak Tracking Total 9 | . 6 2 4 4 9 Tactical Retreats 4 | . . . . 4 . Traps | -11 -10 -10 -9 -9 -9 ------- Run | Yrd Mat Min Mat Min Exi Traps Triggered 2 | . 1 . 1 . . Indirectly . | . . . . . . Trap Hack Attempts . | . . . . . . Triggered . | . . . . . . Disarmed . | . . . . . . Reprogrammed . | . . . . . . Reused . | . . . . . . Traps Extracted . | . . . . . . Installed . | . . . . . . Triggered . | . . . . . . Machines | -11 -10 -10 -9 -9 -9 ---------- Run | Yrd Mat Min Mat Min Exi Machines Disabled 4 | . . . 1 . 3 Max in Single Turn 1 | . . . . . 1 Machines Repaired . | . . . . . . Machines Dismantled . | . . . . . . Machines Sabotaged . | . . . . . . Overloaded Fab Kills . | . . . . . . Hacking | -11 -10 -10 -9 -9 -9 --------- Run | Yrd Mat Min Mat Min Exi Machines Accessed 16 | . 8 . 6 . 2 Terminals 11 | . 6 . 5 . . Fabricators . | . . . . . . Repair Stations . | . . . . . . Recycling Units 3 | . 2 . 1 . . Scanalyzers . | . . . . . . Garrison Access . | . . . . . . Total Hacks 42 | . 25 . 15 . 2 Successful 17 | . 7 . 8 . 2 Failed 25 | . 18 . 7 . . Catastrophic 6 | . 3 . 3 . . Database Lockouts . | . . . . . . Manual 24 | . 15 . 8 . 1 Terminals 28 | . 15 . 13 . . Fabricators . | . . . . . . Repair Stations . | . . . . . . Recycling Units 12 | . 10 . 2 . . Scanalyzers . | . . . . . . Garrison Access . | . . . . . . Terminal Hacks 6 | . 2 . 2 . 2 Record 1 | . . . . . 1 Robot Analysis 1 | . . . 1 . . Terminal Index 1 | . 1 . . . . Zone Layout 2 | . 1 . 1 . . Proto ID Catalog 1 | . . . . . 1 Fabricator Hacks . | . . . . . . Repair Station Hacks . | . . . . . . Recycling Unit Hacks 1 | . . . 1 . . Retrieve Components 1 | . . . 1 . . Scanalyzer . | . . . . . . Garrison Access Hacks . | . . . . . . Unauthorized Hacks 10 | . 5 . 5 . . Terminals 9 | . 5 . 4 . . Skim 9 | . 5 . 4 . . Fabricators . | . . . . . . Repair Stations . | . . . . . . Recycling Units 1 | . . . 1 . . Tunnel 1 | . . . 1 . . Scanalyzers . | . . . . . . Garrison Access . | . . . . . . Data Cores Recovered . | . . . . . . Used . | . . . . . . Hacking Detections 11 | . 7 . 4 . . Full Trace Events 1 | . 1 . . . . Feedback Events . | . . . . . . Feedback Blocked . | . . . . . . Robot Schematics Acquired . | . . . . . . Robots Built . | . . . . . . Authchips . | . . . . . . Time . | . . . . . . Total Robot Build Rating . | . . . . . . Part Schematics Acquired . | . . . . . . Parts Built . | . . . . . . Authchips . | . . . . . . Time . | . . . . . . Total Part Build Rating . | . . . . . . Part Studies Acquired . | . . . . . . Parts Repaired . | . . . . . . Time . | . . . . . . Parts Recycled . | . . . . . . Recycled Matter . | . . . . . . Retrieved Matter . | . . . . . . Retrieved Components 9 | . . . 9 . . Parts Scanalyzed . | . . . . . . Part Schematics Acquired . | . . . . . . Parts Damaged . | . . . . . . Bothacking | -11 -10 -10 -9 -9 -9 ------------ Run | Yrd Mat Min Mat Min Exi Used RIF Installer . | . . . . . . Robots Hacked . | . . . . . . Non-combat . | . . . . . . Combat . | . . . . . . Robot Hacks Applied . | . . . . . . Relay Couplers Released . | . . . . . . Fabnet Peak Effective % . | . . . . . . Robots Rewired . | . . . . . . Allies Hacked . | . . . . . . Hacks Repelled . | . . . . . . Allies | -11 -10 -10 -9 -9 -9 -------- Run | Yrd Mat Min Mat Min Exi Total Allies 5 | . . 2 . 3 . Largest Group 3 | . . 2 1 3 3 Highest-Rated Group 40 | . . 40 31 40 40 Highest-Rated Ally 31 | . . 31 31 16 16 Total Orders 1 | . . . . . 1 STAY 1 | . . . . . 1 Ally Attacks 24 | . . 9 15 . . Total Damage 335 | . . 103 232 . . Kills 6 | . . 2 4 . . Allies Corrupted . | . . . . . . Allies Melted . | . . . . . . Intel | -11 -10 -10 -9 -9 -9 ------- Run | Yrd Mat Min Mat Min Exi Active Infowar (turns) 398 | 19 378 . 1 . . Seismic 397 | 19 378 . . . . ECM 1 | . . . 1 . . Robot Analysis Total 1 | . . . 1 . . Derelict Logs Recovered 3 | . . 1 . 2 . Drone Launches . | . . . . . . Drone Recoveries . | . . . . . . Exploration | -11 -10 -10 -9 -9 -9 ------------- Run | Yrd Mat Min Mat Min Exi Turns Passed 3515 | 115 644 251 465 1041 999 Spaces Moved 2060 | 58 432 252 217 543 558 Core 16 | 15 . . . . 1 Treads 1486 | 43 188 . 155 543 557 Legs . | . . . . . . Wheels 558 | . 244 252 62 . . Hover . | . . . . . . Flight . | . . . . . . Fastest Speed 50 | 50 90 90 105 160 50 Average Speed 140 | 131 120 90 144 160 159 Slowest Speed 160 | 160 160 90 160 160 160 Overloaded Moves . | . . . . . . Propulsion Burnouts . | . . . . . . Robots Hopped . | . . . . . . Potential Cave-ins . | . . . . . . Cave-ins Triggered . | . . . . . . Exploration Rate (%) 54 | 4 70 60 33 91 69 Regions Visited 5 Branch Regions 3 Pre-discovered Areas 5 | . 3 . 1 . 1 Known Exits Taken 2 | . . 1 1 . . Unknown Exits Taken 3 | 1 1 . . 1 . Scrap Searched 3 | . . 1 . 2 . Spaces Dug . | . . . . . . Terrain Destroyed 24 | . 12 . . . 12 Melee . | . . . . . . Projectile . | . . . . . . AOE 24 | . 12 . . . 12 Terrain Rammed . | . . . . . . Walls Destroyed . | . . . . . . Machines Disabled . | . . . . . . Actions | -11 -10 -10 -9 -9 -9 --------- Run | Yrd Mat Min Mat Min Exi Total 2384 | 85 491 266 296 612 634 Wait 50 | . 4 4 8 11 23 Move 2055 | 57 431 251 216 542 558 Hop . | . . . . . . Pick Up 43 | 13 7 5 9 2 7 Fast Attach 1 | . . . 1 . . Attach 22 | 7 3 . 7 3 2 Detach 1 | . . . . 1 . Swap 13 | 1 3 . 4 1 4 Drop 22 | . 2 . 9 . 11 Fire 161 | 7 41 6 42 52 13 Melee 16 | . . . . . 16 Ram . | . . . . . . Kick . | . . . . . . Crush . | . . . . . . Escape Stasis . | . . . . . . Rewire . | . . . . . . Trap . | . . . . . . Miscellaneous . | . . . . . . Route ------- -11/Scrapyard -10/Materials (discovered 5 exits: *Mat x3 / [*Min] / Sub) -10/Mines (discovered 3 exits: *Mat x2 / Sub) -9/Materials (discovered 4 exits: *Mat x2 / *Min x2) -9/Mines (discovered 3 exits: *Mat x2 / *Exi) -9/Exiles (discovered 1 exit: [*Min]) History --------- Turn | Location | Event 17 | -11/Scrapyard | Discovered new exit (range 15) 116 | -11/Scrapyard | Entered Materials 317 | -10/Materials | Build established: Mutant 515 | -10/Materials | Discovered new exit (range 8) 532 | -10/Materials | Lost 4 parts (1p2n1u) 540 | -10/Materials | Discovered new exit (range 12) 587 | -10/Materials | Learned location of Recycling (-7) 665 | -10/Materials | Identified exit to Materials 671 | -10/Materials | Learned Storage terminal intel 679 | -10/Materials | Identified exit to Subcaves 698 | -10/Materials | Learned location of 2 exits from Mines 760 | -10/Materials | Entered Mines 788 | -10/Mines | Learned location of 1 exit from Materials 960 | -10/Mines | Assembled infested the area 965 | -10/Mines | Assisted by a Guerilla fighting off Assembled 1011 | -10/Mines | Entered Materials 1011 | -9/Materials | Accompanied by 1 ally 1011 | -9/Materials | Evolved 2 slots: Utility x2 1012 | -9/Materials | Identified exit to Mines 1013 | -9/Materials | Identified exit to Materials 1016 | -9/Materials | Led the pair of lost Derelicts to an unsafe place 1346 | -9/Materials | Discovered exit to Materials (range 15) 1400 | -9/Materials | Build established: Scavenger-Mutant 1476 | -9/Materials | Entered Mines 1646 | -9/Mines | Discovered exit to Materials (range 12) 1659 | -9/Mines | Learned 2 Materials zone layouts 1899 | -9/Mines | Destroyed 7 combat bots 2014 | -9/Mines | Deemed a non-threat by the Exiles lab entrance 2014 | -9/Mines | Discovered new exit (range 5) 2062 | -9/Mines | Discovered exit to Materials (range 5) 2128 | -9/Mines | A weapon hastily lodged in a ceiling crevice suddenly fell to the ground 2259 | -9/Mines | Assisted by bots powering up and referring to "LRC-V3" 2360 | -9/Mines | Learned Materials trap positions 2517 | -9/Mines | Entered Exiles 2517 | -9/Exiles | Accompanied by 3 allies 2556 | -9/Exiles | Met 8R-AWN 2581 | -9/Exiles | Met EX-HEX 2663 | -9/Exiles | Met EX-DEC 2690 | -9/Exiles | Learned location of Zion (-7) 2796 | -9/Exiles | Met EX-BIN 2819 | -9/Exiles | Aligned with FarCom system 2820 | -9/Exiles | Given EX-Vault access code 2857 | -9/Exiles | Opened EX-Vault 2870 | -9/Exiles | Found Longsword +1 2876 | -9/Exiles | Found Supersonic Drone Bay 2885 | -9/Exiles | Found Flying Fortress v7 2918 | -9/Exiles | Warned to stay clear of 0b10 Research branches 3017 | -9/Exiles | Discovered new exit (range 14) 3386 | -9/Exiles | Attacked by the Exiles 3437 | -9/Exiles | Core integrity fell below 50% 3510 | -9/Exiles | Core integrity fell below 20% 3516 | -9/Exiles | Destroyed by 8R-AWN with 8R-AWN's Boregun Last Messages --------------- 03497_ Penetrated by HV Slug. 03497_ HV Slug penetrates Earth. 03497_ HV Slug penetrates Machine. 03500_ Machine disabled. 03500_ Penetrated by HV Slug. 03500_ Critical hit (Destroy). 03500_ Imp. Ion Engine destroyed. 03500_ HV Slug penetrates Earth. 03502_ Penetrated by HV Slug. 03502_ Critical hit (Destroy). 03502_ Lgt. Assault Rifle destroyed. 03502_ Penetrated by HV Slug. 03505_ Critical hit (Destroy). 03505_ Lgt. Treads destroyed. 03505_ Penetrated by HV Slug. 03507_ Destroyed Prototype Protection. 03509_ Penetrated by HV Slug. 03512_ HV Slug penetrates Machine. 03512_ HV Slug penetrates Wall. 03516_ Penetrated by HV Slug. Map ----- +----------------------------------------------------+ | ?????????????????????????????????????????????????? | | ?????????????????????????????????????????????????? | | ?????????????????????????????????????????????????? | | ?????????????????????????????????????????????????? | | ?????????????????????????????????????????????????? | | ?????????????????????????????????????????????????? | | ?????????????????????????????????????????????????? | | ?????????####????????????????????????????????????? | | ????????## ##??????????????????????????????????? | | ????????# #??????????????????????????????????? | | ????????# < #??????????????????????????????????? | | ????????# ###????????????????????????????????? | | ????????# =#????????????????????????????????? | | ????????# ##????????????????????????????????? | | ????????## #?????????????????????????????????? | | ?????????# ##????????????????????????????????? | | ?????????## #????????????#######?????????????? | | ??????????# #######??????#!!! "#?????????????? | | ??????????# #""##?????# "#?????????????? | | ??????????## #?????# "#?????????????? | | ???????????##" ##???## ""#????????????## | | ???????????#"" #####" ""#???????????? | | ???????????#### ##" ""#????????????" | | ??????????????## g #"" #?????????????"" | | ???????????????#"## #????????????#"" | | ???????????????####### @ ##???????????#"" | | ?????????????????????### # #???????? | | ???????????????########" # #?????????" | | ???????????????# !!""" " ! % ##?????????# | | ???????????????#! [!!### ######???### | | ???????????????#! !"#?## """#####X# | | ???????????????#! ##??#" | | ???????????????# ! " "#;#???#"# | | ???????????????########## #???#### % * | | ????????????????????????# #??????##; | | ????????????????????????# #????????### | | ????????????????????????# #??????????## | | ????????????????????????# #???????????## | | ????????????????????????? ?????????????##" | | ????????????????????????? ??????????????#""" | | ????????????????????????? ?????????????##" | | ????????????????????????? ?????????????#"" | | ???????????????????????????????????????#""" | | ???????????????????????????????????????""" | | ???????????????????????????????????????""" | | ???????????????????????????????????????"" | | ???????????????????????????????????????""" | | ???????????????????????????????????????"" | | ???????????????????????????????????????#"" | | ???????????????????????????????????????#"""" | +----------------------------------------------------+ Best States ------------- Heat Dissipation 28 Energy Generation 12 Energy Capacity 265 Matter Stores 300 Matter Capacity 300 Sight Range 16 Terrain Scan Density 10 Armor Coverage 300 Evasion (%) 50 Recoil Reduction 2 Trap Extractor Capacity 4 Item Schematics ----------------- None Robot Schematics ------------------ None Fabricated ------------ Nothing Repaired ---------- Nothing Studied --------- None Alien Tech Used ----------------- None Achievements -------------- None Challenges ------------ None Game ------ Seed MiningRelayFlail Manual? 0 Play Time 00:20:27 Cumulative 468.6 hours Start 2025.11.05 @ 00:48:04 End 2025.11.05 @ 01:06:19 Sessions 1 Manual Loads 0 Difficulty Rogue Special Mode None Game No. 590 Rogue 590 Adventurer 0 Explorer 0 Win Type - Total 14 Types 6/0/2/2/1/0/2/1/0/0 Lore% 90 Gallery% 85 Achievement% 63 Wizard Run 0 Options --------- Layout 0 ASCII 0 Keyboard 0 Movement Mouse Keybinds 0 Fullscreen 1 Font 24/Terminus Map View 76x50 Zoom Use 0% Tactical HUD 1 Map Filters NONE Filters NONE Steam 1 RUN: eb47747d-22e7-4467-bb2f-e01fbcd3864f